bitfinex-derivatives/quotes_SOLF0:USTF0_20250924
["timestamp","ask_amount","ask_price","bid_price","bid_amount"]
[1758703075057,1.18697241,210.7,210.64,7.55]
[1758703075257,12.03,210.71,210.64,7.55]
[1758703075458,1.18697241,210.7,210.64,7.55]
[1758703075659,12.03,210.71,210.64,7.55]
[1758703075858,1.18697241,210.7,210.64,7.55]
[1758703076062,12.03,210.71,210.64,7.55]
[1758703076261,1.18697241,210.7,210.64,7.55]
[1758703076460,12.03,210.71,210.64,7.55]
[1758703076669,1.18697259,210.7,210.64,7.55]
[1758703076962,12.03,210.71,210.64,7.55]
[1758703077163,1.18697259,210.7,210.64,7.55]
[1758703077363,12.03,210.71,210.64,7.55]
[1758703077564,1.18697259,210.7,210.64,7.55]
[1758703077763,1.18697259,210.69,210.63,5.64704171]
[1758703078066,7.76,210.7,210.64,7.55]
[1758703078770,4.27,210.71,210.64,7.55]
[1758703079068,1.18695446,210.7,210.64,7.55]
[1758703079265,4.27,210.71,210.64,7.55]
[1758703079465,1.18695446,210.7,210.64,7.55]
[1758703079665,4.27,210.71,210.64,7.55]
[1758703079866,1.18695446,210.7,210.64,7.55]
[1758703080065,4.27,210.71,210.64,7.55]
[1758703080364,1.18695446,210.7,210.64,7.55]
[1758703080565,4.27,210.71,210.64,7.55]
[1758703080767,1.18695446,210.7,210.64,7.55]
[1758703080968,4.27,210.71,210.65,7.55]
[1758703081264,1.18695446,210.7,210.62,3.99358185]
[1758703081461,7.76,210.72,210.67,7.55]
[1758703081664,7.76,210.72,210.64,3.99358185]
[1758703081865,7.76,210.72,210.65,7.55]
[1758703082063,7.76,210.72,210.67,4.2706]
[1758703082471,7.76,210.74,210.68,7.55]
[1758703082667,7.76,210.74,210.68,11.8204]
[1758703085070,7.76,210.74,210.68,7.55]
[1758703085268,1.1867889,210.73,210.68,7.55]
[1758703085466,7.76,210.72,210.66,4.2708]
[1758703085772,12.0295,210.74,210.67,7.55]
[1758703085972,7.76,210.72,210.66,11.8208]
[1758703091974,7.76,210.72,210.67,7.55]
[1758703092368,7.76,210.72,210.66,4.2708]
[1758703092568,7.76,210.72,210.68,7.55]
[1758703092773,7.76,210.72,210.67,4.2706]
[1758703092973,7.76,210.72,210.68,7.55]
[1758703093173,7.76,210.72,210.67,4.2706]
[1758703093786,7.76,210.71,210.68,7.55]
[1758703094174,7.76,210.71,210.67,4.2706]
[1758703094476,7.76,210.71,210.65,115.72]
[1758703094477,7.58,210.71,210.65,4.2711]
[1758703094667,7.58,210.71,210.66,70.12]
[1758703094871,4.2698,210.72,210.66,7.61]
[1758703095070,7.58,210.71,210.66,44.13]
[1758703095268,4.2698,210.72,210.66,7.61]
[1758703095474,7.58,210.71,210.66,84.73]
[1758703095776,11.8498,210.72,210.66,7.61]
[1758703096172,11.8498,210.72,210.66,44.11]
[1758703097079,11.8498,210.72,210.66,78.75]
[1758703097276,1.18684247,210.71,210.62,7.61]
[1758703097477,7.58,210.7,210.64,104.32]
[1758703097682,7.58,210.7,210.65,11.881]
[1758703097980,7.58,210.73,210.66,7.61]
[1758703099879,7.58,210.74,210.68,11.8804]
[1758703100075,7.58,210.72,210.68,4.2704]
[1758703100279,7.58,210.72,210.69,7.61]
[1758703100578,7.58,210.74,210.65,3.99358185]
[1758703100784,7.58,210.74,210.66,7.61]
[1758703101289,7.58,210.74,210.71,7.61]
[1758703102079,4.269,210.76,210.7,11.88]
[1758703102080,11.849,210.76,210.7,11.88]
[1758703107184,11.4892,210.75,210.69,7.76]
[1758703107888,7.22,210.76,210.71,7.76]
[1758703108185,11.4888,210.77,210.71,7.76]
[1758703108384,8.40664734,210.76,210.7,12.0299]
[1758703108586,7.22,210.76,210.7,12.0299]
[1758703109484,7.22,210.76,210.72,7.76]
[1758703110084,7.22,210.76,210.71,4.2698]
[1758703110480,7.22,210.76,210.72,7.76]
[1758703110987,7.22,210.78,210.74,7.76]
[1758703111185,4.2684,210.79,210.74,7.76]
[1758703111484,7.22,210.77,210.74,7.76]
[1758703111681,4.2684,210.79,210.74,7.76]
[1758703111882,1.18654765,210.78,210.74,7.76]
[1758703112079,4.2686,210.78,210.71,65.4498]
[1758703112280,1.18654765,210.77,210.71,65.4498]
[1758703112481,7.22,210.77,210.71,65.4498]
[1758703113180,4.2686,210.78,210.72,4.2696]
[1758703113382,7.22,210.79,210.73,7.76]
[1758703113581,1.18654765,210.78,210.72,7.76]
[1758703113776,7.22,210.79,210.72,7.76]
[1758703113981,1.18654765,210.78,210.72,7.76]
[1758703114283,11.4884,210.79,210.73,4.2694]
[1758703114484,1.18654765,210.78,210.73,12.0294]
[1758703114684,7.22,210.77,210.73,12.0294]
[1758703115083,7.22,210.77,210.74,7.76]
[1758703115485,4.2684,210.79,210.74,7.76]
[1758703115486,7.22,210.78,210.74,7.76]
[1758703115686,4.2684,210.79,210.74,7.76]
[1758703115989,7.22,210.77,210.74,7.76]
[1758703116689,7.22,210.77,210.73,4.2694]
[1758703116891,7.22,210.77,210.74,7.76]
[1758703117591,7.22,210.77,210.73,4.2694]
[1758703117788,7.22,210.77,210.74,7.76]
[1758703119094,4.2684,210.79,210.74,7.76]
[1758703119293,7.22,210.77,210.74,7.76]
[1758703119791,7.22,210.78,210.73,4.2694]
[1758703120093,4.2684,210.79,210.74,7.76]
[1758703120293,7.22,210.77,210.74,7.76]
[1758703120494,7.22,210.77,210.73,4.2694]
[1758703120993,7.22,210.77,210.74,7.76]
[1758703123795,7.22,210.75,210.71,7.76]
[1758703124285,7.22,210.75,210.71,4.2698]
[1758703124490,7.22,210.75,210.72,7.76]
[1758703125091,11.4892,210.75,210.69,12.0303]
[1758703125291,11.4892,210.75,210.69,127.6303]
[1758703125701,4.2688,210.77,210.7,4.27]
[1758703125997,7.22,210.76,210.7,4.27]
[1758703126889,11.489,210.76,210.7,4.27]
[1758703127694,4.2692,210.75,210.7,4.27]
[1758703127895,7.22,210.74,210.7,4.27]
[1758703128085,4.2692,210.75,210.7,4.27]
[1758703128086,4.2692,210.75,210.7,12.03]
[1758703128498,7.22,210.74,210.71,7.76]
[1758703128700,11.4892,210.75,210.71,7.76]
[1758703129197,11.4892,210.75,210.7,4.27]
[1758703129496,11.4892,210.75,210.71,7.76]
[1758703129690,11.4892,210.75,210.7,4.27]
[1758703129890,4.2692,210.75,210.7,4.27]
[1758703130087,7.22,210.74,210.71,7.76]
[1758703132301,4.2692,210.75,210.71,7.76]
[1758703132500,7.22,210.74,210.71,7.76]
[1758703133001,4.2692,210.75,210.69,115.6]
[1758703133201,11.4892,210.75,210.69,123.36]
[1758703134804,11.4892,210.75,210.69,127.6302]
[1758703136306,4.2692,210.75,210.69,127.6302]
[1758703136499,7.74,210.74,210.69,127.5702]
[1758703136699,7.74,210.73,210.69,127.5702]
[1758703136901,7.74,210.73,210.7,7.7]
[1758703137597,4.2694,210.74,210.7,7.7]
[1758703137800,66.403,210.77,210.67,11.69358185]
[1758703138000,67.59428444,210.76,210.67,32.16]
[1758703138202,1.18668444,210.75,210.67,32.16]
[1758703138402,7.74,210.74,210.67,32.16]
[1758703138597,1.18668444,210.73,210.67,39.86]
[1758703138807,7.74,210.75,210.67,39.86]
[1758703139006,7.74,210.69,210.67,39.86]
[1758703139200,7.74,210.69,210.67,32.16]
[1758703140503,66.4156,210.73,210.65,7.7]
[1758703140707,7.74,210.68,210.6,349.47358185]
[1758703141006,7.74,210.68,210.55,94.50488889]
[1758703141007,1.37496837,210.66,210.57,115.58]
[1758703141208,7.74,210.61,210.58,7.7]
[1758703141403,7.74,210.61,210.57,115.58]
[1758703141605,7.74,210.61,210.58,7.7]
[1758703141911,4.2718,210.62,210.57,115.58]
[1758703142102,7.74,210.61,210.57,123.28]
[1758703142505,4.2718,210.62,210.57,123.28]
[1758703143010,7.74,210.61,210.57,123.28]
[1758703143506,4.2718,210.62,210.57,123.28]
[1758703143709,7.74,210.6,210.57,123.28]
[1758703145109,7.74,210.6,210.57,115.58]
[1758703145309,7.74,210.6,210.57,123.28]
[1758703146110,7.74,210.6,210.58,7.7]
[1758703147613,7.74,210.61,210.58,7.7]
[1758703148609,7.74,210.66,210.58,7.7]
[1758703148811,1.37496837,210.63,210.58,7.7]
[1758703149011,1.37496837,210.63,210.57,115.58]
[1758703149609,7.74,210.62,210.56,115.6]
[1758703149813,4.2719,210.61,210.56,115.6]
[1758703150112,12.0119,210.61,210.57,7.7]
[1758703151012,7.74,210.6,210.57,7.7]
[1758703151315,1.37496837,210.6,210.56,115.6]
[1758703151615,5.64716837,210.6,210.56,115.6]
[1758703151815,7.74,210.59,210.56,123.3]
[1758703152306,7.74,210.59,210.56,7.7]
[1758703154414,7.22,210.59,210.56,7.7]
[1758703155910,5.64716837,210.6,210.56,7.7]
[1758703156114,5.64716837,210.6,210.55,122.85]
[1758703156512,7.22,210.59,210.55,122.85]
[1758703156908,5.64716837,210.6,210.55,122.85]
[1758703157110,7.22,210.58,210.55,122.85]
[1758703157614,7.22,210.58,210.55,7.23]
[1758703158822,7.22,210.57,210.53,115.62]
[1758703159119,7.22,210.57,210.54,7.23]
[1758703159316,4.2728,210.57,210.53,115.62]
[1758703159518,7.22,210.56,210.53,122.85]
[1758703160414,4.2731,210.56,210.53,122.85]
[1758703160620,1.37496837,210.55,210.49,7.23]
[1758703160823,7.22,210.54,210.49,7.23]
[1758703161013,1.37496837,210.55,210.48,115.62]
[1758703161213,7.22,210.54,210.48,115.62]
[1758703161922,7.22,210.53,210.48,115.62]
[1758703162315,1.37496837,210.55,210.49,7.23]
[1758703162516,5.64816837,210.55,210.49,7.23]
[1758703162714,1.37496837,210.55,210.49,7.23]
[1758703166725,11.493,210.56,210.49,7.23]
[1758703166932,12.86796837,210.56,210.49,7.23]
[1758703171131,8.59496837,210.56,210.49,7.23]
[1758703172227,8.59496837,210.56,210.47,115.64]
[1758703172228,4.2736,210.53,210.47,115.64]
[1758703172429,7.37,210.53,210.47,115.64]
[1758703173632,7.37,210.53,210.48,7.3]
[1758703173833,4.2738,210.52,210.48,7.3]
[1758703174039,4.2738,210.52,210.47,115.64]
[1758703174230,4.2738,210.52,210.48,7.3]
[1758703174426,4.2738,210.52,210.47,115.64]
[1758703175435,7.37,210.53,210.48,7.3]
[1758703175634,7.37,210.53,210.47,115.64]
[1758703175832,7.37,210.53,210.48,7.3]
[1758703176036,7.37,210.53,210.47,115.64]
[1758703176441,5.64796837,210.56,210.48,7.3]
[1758703176637,1.37496837,210.56,210.48,7.3]
[1758703176842,7.37,210.57,210.48,7.3]
[1758703177042,4.2733,210.55,210.48,7.3]
[1758703179248,4.2734,210.54,210.48,7.3]
[1758703179448,4.2734,210.54,210.48,122.94]
[1758703181143,4.2734,210.54,210.48,115.64]
[1758703181349,4.2734,210.54,210.49,7.3]
[1758703181652,4.2734,210.54,210.48,115.64]
[1758703181942,4.2734,210.54,210.49,7.3]
[1758703182347,7.37,210.55,210.49,7.3]
[1758703183050,11.6432,210.55,210.49,7.3]
[1758703183244,7.37,210.55,210.49,7.3]
[1758703184744,4.2735,210.54,210.49,7.3]
[1758703184950,4.2735,210.54,210.48,115.64]
[1758703185549,4.2735,210.54,210.49,7.3]
[1758703185852,4.2735,210.54,210.48,115.64]
[1758703186251,4.2735,210.54,210.49,7.3]
[1758703186947,4.2735,210.54,210.48,115.64]
[1758703187756,11.6435,210.54,210.49,7.3]
[1758703188143,11.6435,210.54,210.48,115.64]
[1758703188441,11.6435,210.54,210.49,7.3]
[1758703188648,11.6435,210.54,210.48,115.64]
[1758703188850,11.6435,210.54,210.49,7.3]
[1758703189050,7.37,210.54,210.49,7.3]
[1758703190045,7.37,210.54,210.48,115.64]
[1758703190250,7.37,210.54,210.49,7.3]
[1758703190452,11.6432,210.55,210.49,7.3]
[1758703191554,1.37496837,210.52,210.4,8.67496837]
[1758703191755,7.37,210.51,210.4,8.67496837]
[1758703191950,1.37496837,210.52,210.42,7.3]
[1758703192152,7.37,210.51,210.43,46.86]
[1758703192351,8.74496837,210.49,210.43,46.86]
[1758703193049,4.2747,210.48,210.43,46.86]
[1758703193254,7.37,210.47,210.43,46.86]
[1758703193547,11.7747,210.48,210.43,46.86]
[1758703193954,7.5,210.53,210.44,8.01]
[1758703194454,7.5,210.5,210.44,8.01]
[1758703194854,11.7743,210.5,210.44,8.01]
[1758703195055,7.5,210.5,210.44,8.01]
[1758703195357,7.5,210.47,210.41,8.01]
[1758703195552,4.2751,210.46,210.41,8.01]
[1758703195751,4.2751,210.46,210.4,8.01]
[1758703196046,7.5,210.47,210.4,8.01]
[1758703196559,7.5,210.44,210.36,8.01]
[1758703196852,7.5,210.41,210.32,28.43]
[1758703197057,4.2756,210.43,210.34,9.38496837]
[1758703197554,7.5,210.45,210.38,8.01]
[1758703197758,11.7752,210.45,210.38,8.01]
[1758703199158,7.5,210.45,210.38,8.01]
[1758703201155,7.5,210.43,210.36,33.26]
[1758703202757,11.7757,210.43,210.36,33.26]
[1758703203361,11.7757,210.43,210.37,8.01]
[1758703203563,7.5,210.47,210.37,8.01]
[1758703203957,11.7748,210.47,210.37,8.01]
[1758703204163,7.5,210.47,210.39,8.01]
[1758703204860,7.5,210.47,210.4,4.276]
[1758703205059,7.5,210.47,210.41,8.01]
[1758703205557,7.5,210.47,210.41,12.2858]
[1758703206063,4.2744,210.49,210.41,12.2858]
[1758703207567,4.2748,210.47,210.41,8.01]
[1758703207768,11.7748,210.47,210.41,8.01]
[1758703212065,4.2767,210.38,210.32,8.01]
[1758703212267,7.5,210.39,210.32,8.01]
[1758703212770,11.7758,210.42,210.33,8.01]
[1758703213670,4.2761,210.41,210.33,8.01]
[1758703213870,7.5,210.42,210.33,8.01]
[1758703214370,4.2765,210.39,210.33,8.01]
[1758703214572,11.7765,210.39,210.33,8.01]
[1758703214773,7.5,210.39,210.33,8.01]
[1758703215761,4.2767,210.38,210.31,77.88]
[1758703215965,4.2767,210.38,210.32,8.01]
[1758703216362,4.2769,210.37,210.32,8.01]
[1758703216569,7.5,210.36,210.29,8.01]
[1758703218075,7.5,210.36,210.29,12.2882]
[1758703220678,7.5,210.36,210.29,8.01]
[1758703221578,7.5,210.36,210.21,8.01]
[1758703221777,7.5,210.32,210.24,4.2794]
[1758703221979,7.5,210.32,210.24,12.2894]
[1758703222277,7.5,210.32,210.25,8.01]
[1758703222579,7.5,210.32,210.22,41.96]
[1758703222778,7.5,210.4,210.26,8.01]
[1758703223277,74.0194,210.4,210.26,8.01]
[1758703223477,7.5,210.37,210.26,8.01]
[1758703224580,7.64,210.4,210.27,7.81]
[1758703225775,4.2769,210.37,210.28,4.2786]
[1758703225980,11.9169,210.37,210.29,7.81]
[1758703228581,4.2771,210.36,210.29,7.81]
[1758703232084,4.2771,210.36,210.29,12.0883]
[1758703232487,7.64,210.37,210.3,7.81]
[1758703232674,7.64,210.37,210.3,12.0881]
[1758703233782,4.2771,210.36,210.3,12.0881]
[1758703235086,7.64,210.33,210.3,7.81]
[1758703235583,11.917,210.36,210.3,4.2781]
[1758703235785,7.64,210.4,210.26,7.81]
[1758703236483,4.2767,210.38,210.32,4.2777]
[1758703236689,11.9167,210.38,210.32,12.0877]
[1758703238689,7.64,210.38,210.34,4.2774]
[1758703238882,7.64,210.38,210.35,7.81]
[1758703239185,7.64,210.42,210.33,7.81]
[1758703239982,7.64,210.39,210.33,7.81]
[1758703240587,11.9165,210.39,210.33,7.81]
[1758703242089,11.9165,210.39,210.33,12.0875]
[1758703243386,6.42991606,210.42,210.35,7.81]
[1758703243590,14.06991606,210.42,210.35,7.81]
[1758703244189,11.9159,210.42,210.35,12.0871]
[1758703244394,11.9159,210.42,210.35,7.81]
[1758703245895,11.9159,210.42,210.36,4.2768]
[1758703247090,4.2761,210.41,210.35,7.81]
[1758703247297,11.9161,210.41,210.35,7.81]
[1758703247697,7.64,210.41,210.36,4.2769]
[1758703247896,7.64,210.45,210.35,7.81]
[1758703248900,4.2755,210.44,210.38,4.2765]
[1758703249102,4.2755,210.44,210.38,12.0865]
[1758703249996,4.2746,210.48,210.42,7.81]
[1758703250801,4.2746,210.48,210.42,12.0856]
[1758703251001,7.64,210.49,210.42,7.81]
[1758703252203,7.64,210.49,210.42,12.0857]
[1758703253902,11.9144,210.49,210.42,12.0857]
[1758703258013,11.9144,210.49,210.43,4.2754]
[1758703261414,7.64,210.49,210.41,7.87]
[1758703261608,4.274,210.51,210.41,7.87]
[1758703262509,7.89,210.52,210.46,4.2748]
[1758703263311,7.89,210.52,210.45,7.87]
[1758703264512,9.26757276,210.52,210.45,7.87]
[1758703264813,4.2743,210.5,210.45,7.87]
[1758703265211,7.89,210.49,210.45,7.87]
[1758703265412,4.2743,210.5,210.45,7.87]
[1758703265618,7.89,210.49,210.45,7.87]
[1758703265916,4.2743,210.5,210.45,7.87]
[1758703266107,7.89,210.49,210.45,7.87]
[1758703266512,4.2743,210.5,210.45,7.87]
[1758703266711,7.89,210.49,210.45,7.87]
[1758703266912,4.2743,210.5,210.45,7.87]
[1758703267519,7.89,210.49,210.45,7.87]
[1758703268019,4.2743,210.5,210.45,7.87]
[1758703268217,4.2744,210.49,210.45,7.87]
[1758703268519,1.37757276,210.52,210.43,115.98]
[1758703268721,7.89,210.5,210.43,115.98]
[1758703268916,7.89,210.51,210.43,115.98]
[1758703269223,1.37757276,210.52,210.43,115.98]
[1758703269424,7.89,210.5,210.43,115.98]
[1758703269819,1.37757276,210.52,210.43,115.98]
[1758703269820,4.2747,210.48,210.43,115.98]
[1758703270020,12.1647,210.48,210.43,115.98]
[1758703270417,12.1647,210.48,210.44,7.87]
[1758703270626,4.2742,210.5,210.44,7.87]
[1758703271827,4.2742,210.5,210.44,4.2752]
[1758703272029,7.89,210.51,210.45,1.37757276]
[1758703272237,7.89,210.54,210.46,7.87]
[1758703272532,182.5937,210.61,210.51,7.87]
[1758703272533,7.89,210.57,210.51,7.87]
[1758703272920,4.273,210.56,210.5,12.1441]
[1758703276138,7.89,210.57,210.52,7.87]
[1758703276328,7.89,210.57,210.51,7.87]
[1758703277934,14.30556174,210.61,210.54,9.24757276]
[1758703278231,14.30556174,210.61,210.55,1.37757276]
[1758703278426,14.30556174,210.61,210.56,7.87]
[1758703278630,14.30556174,210.61,210.55,1.37757276]
[1758703278837,7.89,210.63,210.56,7.87]
[1758703279840,12.1618,210.62,210.56,7.87]
[1758703280028,4.2718,210.62,210.56,7.87]
[1758703280226,9.26757276,210.65,210.56,7.87]
[1758703280539,1.18742179,210.64,210.56,7.87]
[1758703280730,9.26757276,210.65,210.56,7.87]
[1758703281025,1.18742161,210.64,210.56,7.87]
[1758703281228,9.26757276,210.65,210.56,7.87]
[1758703281429,1.18742161,210.64,210.56,7.87]
[1758703281626,9.26757276,210.65,210.56,7.87]
[1758703281835,5.4588216,210.64,210.56,12.1428]
[1758703282038,4.2714,210.64,210.56,12.1428]
[1758703283437,9.26757276,210.65,210.54,32.18]
[1758703283438,7.89,210.65,210.58,7.87]
[1758703283731,64.47101026,210.66,210.6,7.93]
[1758703284338,71.77101026,210.66,210.6,7.93]
[1758703290932,7.3,210.65,210.57,4.2726]
[1758703291138,7.3,210.65,210.57,80.09017276]
[1758703291336,7.3,210.65,210.57,121.53017276]
[1758703291538,7.3,210.65,210.56,7.93]
[1758703291736,1.18739814,210.64,210.55,24.43757276]
[1758703291941,7.3,210.62,210.55,24.43757276]
[1758703292544,4.272,210.61,210.55,24.43757276]
[1758703292746,7.3,210.62,210.55,24.43757276]
[1758703292945,7.3,210.62,210.56,7.93]
[1758703293242,7.3,210.62,210.58,1.37757276]
[1758703293445,7.3,210.65,210.59,7.93]
[1758703294448,1.18730907,210.64,210.58,1.37757276]
[1758703294652,7.3,210.65,210.58,1.37757276]
[1758703294947,7.3,210.63,210.58,1.37757276]
[1758703295142,7.3,210.65,210.58,1.37757276]
[1758703295342,7.3,210.63,210.58,1.37757276]
[1758703295542,7.3,210.65,210.58,1.37757276]
[1758703295737,4.2718,210.62,210.58,1.37757276]
[1758703295948,4.2718,210.62,210.56,110.99]
[1758703297852,7.3,210.63,210.56,110.99]
[1758703298659,4.2719,210.62,210.56,110.99]
[1758703298956,7.3,210.64,210.56,7.93]
[1758703299263,1.18734479,210.63,210.56,7.93]
[1758703299457,7.3,210.64,210.56,7.93]
[1758703299659,7.3,210.62,210.56,7.93]
[1758703299858,4.2721,210.61,210.56,7.93]
[1758703300157,7.3,210.61,210.54,7.93]
[1758703300358,8.67757276,210.59,210.51,7.93]
[1758703300562,7.3,210.57,210.51,7.93]
[1758703300760,7.3,210.58,210.49,115.84]
[1758703300951,11.5737,210.53,210.49,123.77]
[1758703301262,11.5737,210.53,210.5,7.93]
[1758703302959,4.2732,210.55,210.49,115.84]
[1758703303166,11.5732,210.55,210.49,123.77]
[1758703305167,11.5732,210.55,210.49,7.93]
[1758703305366,7.3,210.54,210.51,7.93]
[1758703305667,11.5734,210.54,210.51,7.93]
[1758703305869,7.3,210.53,210.5,123.77]
[1758703306068,7.3,210.53,210.5,7.93]
[1758703306267,7.3,210.53,210.5,123.75]
[1758703306465,7.3,210.53,210.5,115.82]
[1758703306769,7.3,210.53,210.51,7.93]
[1758703306964,7.3,210.55,210.51,7.93]
[1758703307770,7.3,210.55,210.51,123.73]
[1758703307958,7.3,210.55,210.52,7.93]
[1758703309967,5.65057276,210.56,210.52,7.93]
[1758703310162,7.3,210.55,210.52,7.93]
[1758703310369,7.3,210.6,210.52,7.93]
[1758703311475,11.5722,210.6,210.52,12.2036]
[1758703311975,11.5722,210.6,210.53,7.93]
[1758703313673,4.2724,210.59,210.53,7.93]
[1758703314677,1.37757276,210.59,210.53,7.93]
[1758703314872,1.37757276,210.59,210.54,115.98]
[1758703315174,1.37757276,210.59,210.53,115.96]
[1758703315365,1.37757276,210.59,210.53,123.51]
[1758703315366,7.67,210.57,210.53,123.51]
[1758703315570,7.67,210.58,210.53,123.51]
[1758703315771,1.37757276,210.59,210.53,123.51]
[1758703315772,4.273,210.56,210.53,123.51]
[1758703316572,4.273,210.56,210.53,115.96]
[1758703316771,11.9426,210.58,210.54,7.55]
[1758703317269,11.9426,210.58,210.53,115.96]
[1758703317469,11.9426,210.58,210.54,7.55]
[1758703317677,11.9426,210.58,210.53,115.96]
[1758703317975,11.9426,210.58,210.54,7.55]
[1758703318670,11.9426,210.58,210.54,123.47]
[1758703319072,4.2728,210.57,210.54,123.47]
[1758703319280,11.9428,210.57,210.54,123.47]
[1758703319776,11.9428,210.57,210.54,7.55]
[1758703319966,11.9428,210.57,210.54,123.45]
[1758703320371,11.9428,210.57,210.54,115.9]
[1758703320566,11.9428,210.57,210.54,123.45]
[1758703322274,4.2728,210.57,210.54,115.9]
[1758703322483,7.67,210.55,210.47,353.45]
[1758703322676,1.18770732,210.54,210.48,115.88]
[1758703322973,1.37757276,210.56,210.49,7.55]
[1758703323180,7.67,210.58,210.49,7.55]
[1758703323381,1.18772618,210.57,210.49,7.55]
[1758703323573,1.18772618,210.56,210.49,7.55]
[1758703323876,1.37757276,210.62,210.49,8.92757276]
[1758703324176,4.2724,210.59,210.52,1.37757276]
[1758703324379,1.18764459,210.58,210.53,115.9]
[1758703324573,4.2724,210.59,210.53,115.9]
[1758703324778,4.2724,210.59,210.54,7.55]
[1758703325981,4.2724,210.59,210.53,115.9]
[1758703326186,4.2724,210.59,210.54,7.55]
[1758703326875,4.2724,210.59,210.53,115.9]
[1758703329975,4.2724,210.59,210.54,7.55]
[1758703330782,4.2724,210.59,210.53,115.9]
[1758703330981,4.2724,210.59,210.54,7.55]
[1758703331183,4.2724,210.59,210.53,123.45]
[1758703331784,7.67,210.57,210.53,7.55]
[1758703332089,8.85763504,210.56,210.53,7.55]
[1758703332289,11.943,210.56,210.53,7.55]
[1758703332485,66.46,210.59,210.5,7.55]
[1758703332692,1.18769922,210.58,210.51,115.84]
[1758703332885,7.67,210.56,210.51,115.84]
[1758703333084,7.67,210.58,210.51,115.84]
[1758703333284,1.18770011,210.57,210.51,115.84]
[1758703333486,7.67,210.55,210.51,115.84]
[1758703333688,66.46,210.59,210.51,115.84]
[1758703333886,66.4657,210.57,210.46,7.55]
[1758703334089,3.33806767,210.58,210.46,7.55]
[1758703334090,7.67,210.53,210.46,7.55]
[1758703334285,1.18770049,210.52,210.46,7.55]
[1758703335792,4.2742,210.5,210.45,20.56]
[1758703335992,4.2742,210.5,210.46,7.55]
[1758703336194,4.2742,210.5,210.45,20.56]
[1758703336390,4.2742,210.5,210.46,7.55]
[1758703336587,4.2742,210.5,210.45,20.56]
[1758703336786,4.2742,210.5,210.46,7.55]
[1758703336986,4.2742,210.5,210.45,20.56]
[1758703337492,4.2742,210.5,210.46,7.55]
[1758703337692,4.2742,210.5,210.45,20.56]
[1758703338094,4.2742,210.5,210.46,7.55]
[1758703338590,4.2742,210.5,210.45,20.56]
[1758703339296,4.2742,210.5,210.46,7.55]